{"text_format":"1","workbook":"xlsx","n_sheets":1,"sheets":["0"],"not_rendered":{"charts":0,"images":0,"macros":0,"external_links":0,"defined_names":0,"comments":0,"pivot_tables":0},"unopened":[],"bounds":{"document_bytes":16777216,"sheet_cells":100000,"rows_first":2000,"rows_last":500,"rows_between":2000,"halvings":0,"cell_chars":16384,"cell_head_chars":4096},"cells_cut":0,"cells_raw":0,"read":"whole","date_system":"1900"}

{"sheet":"0","index":0,"n_rows":53,"n_cols":9,"rows_kept":53,"cut":false,"hidden":false,"merged":[[0,0,0,8],[16,0,16,8],[29,0,29,8],[42,0,42,8],[2,0,12,0],[18,0,27,0],[31,0,40,0],[44,0,51,0],[2,1,12,1],[18,1,27,1],[31,1,40,1],[44,1,51,1],[2,2,8,2],[9,2,12,2],[18,2,23,2],[24,2,27,2],[31,2,36,2],[37,2,40,2],[44,2,48,2],[49,2,51,2]]}
["2025年南关区属公共街路、绿地养护项目"]
["序号","采购金额（元）","名称","种类","特征描述","数量","单位","综合单价（元）","小计"]
["2025年南关\n区属公共街路、\n绿地养护项目\n",{"$f":"I3+I4+I5+I6+I7+I8+I9+I10+I11+I12+I13","v":0},"公共街路养护\n（卫星路以北）","乔木（涂白1次、抹树芽5次）养护期5个月","乔木养护\n服务内容：（1）涂白1次，涂白高度1.2m ,同一路段、区域的涂白高度一致。涂白时保持树木周边无涂白料，干净整洁。\n（2）抹树芽5次（1次/月，仅杨树、柳树、稠李需要抹树芽）人工清除，单次除干净，不要留残枝。\n（3）垃圾外运，运距自行考虑。\n服务期：5个月。",{"$f":"493+857+186+550+427+96+3277+519","v":6405},"株",null,{"$f":"F3*H3","v":0}]
[null,null,null,"乔木（涂白1次）养护期5个月","乔木养护\n服务内容：（1）涂白1次，涂白高度1.2m ,同一路段、区域的涂白高度一致。涂白时保持树木周边无涂白料，干净整洁。\n（2）抹树芽5次（1次/月，仅杨树、柳树、稠李需要抹树芽）人工清除，单次除干净，不要留残枝。\n（3）垃圾外运，运距自行考虑。\n服务期：5个月。",{"$f":"1429+146+62+332+172+392+384+216","v":3133},"株",null,0]
[null,null,null,"灌木养护期5个月","灌木养护\n服务内容：（1）除杂8次以上，人工清除，不能留有杂草，杂草单平米不超3株，杂草高度不超5cm。\n（2）杂草及时清理，保证绿地内无残枝，垃圾外运，运距自行考虑。\n服务期：5个月。",342,"株",null,0]
[null,null,null,"绿篱养护期5个月","绿篱养护\n服务内容：（1）修剪8次以上，保持新生枝条不超过10CM，绿篱整形符合造景要求，立面、平面整齐，光滑，无高低不平现象。\n（2）除杂8次以上，人工清除，不能留有杂草，单平米不超3株，杂草高度不超5cm。\n（3）修剪枝条及时清理，保证绿地内无残枝，垃圾外运，运距自行考虑。\n服务期：5个月。",26524,"平方米",null,0]
[null,null,null,"草坪养护期5个月","草坪养护\n服务内容：（1）修剪8次以上，采用割冠机和草坪修剪机修剪，修剪整齐，高度一致，高度控制在6-8厘米，确保草坪外观整齐。\n（2）修剪下的草坪及时外运，运距自行考虑。\n(3)除杂8次，人工清除，不能留有杂草，杂草高度不超5cm。\n服务期：5个月。",4604,"平方米",null,0]
[null,null,null,"宿根花卉养护期5个月","宿根花卉\n服务内容：（1）除杂8次以上，人工清除，不能留有杂草，杂草单平米不超3株，杂草高度不超5cm。\n（2）杂草及时清理，保证绿地内无残花，垃圾外运，运距自行考虑。\n服务期：5个月。",12860,"平方米",null,0]
[null,null,null,"应季花卉养护期5个月","应季花卉养护\n服务内容：（1）除杂8次以上，人工清除，不能留有杂草，杂草单平米不超3株，杂草高度不超5cm。\n（2）杂草及时清理，保证绿地内无残花，垃圾外运，运距自行考虑。\n服务期：5个月。",325,"平方米",null,0]
[null,null,"公共绿地养护\n（卫星路以北）","绿篱养护期5个月","绿篱养护\n服务内容：（1）修剪8次以上，保持新生枝条不超过10CM，绿篱整形符合造景要求，立面、平面整齐，光滑，无高低不平现象。\n（2）除杂8次以上，人工清除，不能留有杂草，单平米不超3株，杂草高度不超5cm。\n（3）修剪枝条及时清理，保证绿地内无残枝，垃圾外运，运距自行考虑。\n服务期：5个月。",20889,"平方米",null,0]
[null,null,null,"草坪养护期5个月","草坪养护\n服务内容：（1）修剪8次以上，采用割冠机和草坪修剪机修剪，修剪整齐，高度一致，高度控制在6-8厘米，确保草坪外观整齐。\n（2）修剪下的草坪及时外运，运距自行考虑。\n(3)除杂8次，人工清除，不能留有杂草，杂草高度不超5cm。\n服务期：5个月。",120556,"平方米",null,0]
[null,null,null,"宿根花卉养护期5个月","宿根花卉\n服务内容：（1）除杂8次以上，人工清除，不能留有杂草，杂草单平米不超3株，杂草高度不超5cm。\n（2）杂草及时清理，保证绿地内无残花，垃圾外运，运距自行考虑。\n服务期：5个月。",34623,"平方米",null,0]
[null,null,null,"应季花卉养护期5个月","应季花卉养护\n服务内容：（1）除杂8次以上，人工清除，不能留有杂草，杂草单平米不超3株，杂草高度不超5cm。\n（2）杂草及时清理，保证绿地内无残花，垃圾外运，运距自行考虑。\n服务期：5个月。",3813,"平方米",null,0]
["小计",{"$f":"SUM(B3:B13)","v":0}]
[]
[]
["2025年南关区属公共街路、绿地养护项目"]
["序号","采购金额（元）","名称","种类","特征描述","数量","单位","综合单价（元）","小计"]
["2025年南关\n区属公共街路、\n绿地养护项目\n",{"$f":"I19+I20+I21+I22+I23+I24+I25+I26+I27+I28","v":0},"公共街路养护\n（卫星路以南-南四环路）","乔木（涂白1次、抹树芽5次）养护期5个月","乔木养护\n服务内容：（1）涂白1次，涂白高度1.2m ,同一路段、区域的涂白高度一致。涂白时保持树木周边无涂白料，干净整洁。\n（2）抹树芽5次（1次/月，仅杨树、柳树、稠李需要抹树芽）人工清除，单次除干净，不要留残枝。\n（3）垃圾外运，运距自行考虑。\n服务期：5个月。",{"$f":"1390+328+306+609+202+330+2083","v":5248},"株",null,{"$f":"F19*H19","v":0}]
[null,null,null,"乔木（涂白1次）养护期5个月","乔木养护\n服务内容：（1）涂白1次，涂白高度1.2m ,同一路段、区域的涂白高度一致。涂白时保持树木周边无涂白料，干净整洁。\n（2）抹树芽5次（1次/月，仅杨树、柳树、稠李需要抹树芽）人工清除，单次除干净，不要留残枝。\n（3）垃圾外运，运距自行考虑。\n服务期：5个月。",{"$f":"2068+315+317+698+1427+31+1274","v":6130},"株",null,0]
[null,null,null,"绿篱养护期5个月","绿篱养护\n服务内容：（1）修剪8次以上，保持新生枝条不超过10CM，绿篱整形符合造景要求，立面、平面整齐，光滑，无高低不平现象。\n（2）除杂8次以上，人工清除，不能留有杂草，单平米不超3株，杂草高度不超5cm。\n（3）修剪枝条及时清理，保证绿地内无残枝，垃圾外运，运距自行考虑。\n服务期：5个月。",{"$f":"10396+3991","v":14387},"平方米",null,0]
[null,null,null,"草坪养护期5个月","草坪养护\n服务内容：（1）修剪8次以上，采用割冠机和草坪修剪机修剪，修剪整齐，高度一致，高度控制在6-8厘米，确保草坪外观整齐。\n（2）修剪下的草坪及时外运，运距自行考虑。\n(3)除杂8次，人工清除，不能留有杂草，杂草高度不超5cm。\n服务期：5个月。",{"$f":"6607+9123","v":15730},"平方米",null,0]
[null,null,null,"宿根花卉养护期5个月","宿根花卉\n服务内容：（1）除杂8次以上，人工清除，不能留有杂草，杂草单平米不超3株，杂草高度不超5cm。\n（2）杂草及时清理，保证绿地内无残花，垃圾外运，运距自行考虑。\n服务期：5个月。",{"$f":"18655+6981","v":25636},"平方米",null,0]
[null,null,null,"应季花卉养护期5个月","应季花卉养护\n服务内容：（1）除杂8次以上，人工清除，不能留有杂草，杂草单平米不超3株，杂草高度不超5cm。\n（2）杂草及时清理，保证绿地内无残花，垃圾外运，运距自行考虑。\n服务期：5个月。",909,"平方米",null,0]
[null,null,"公共绿地养护\n（卫星路以南-南四环路）","绿篱养护期5个月","绿篱养护\n服务内容：（1）修剪8次以上，保持新生枝条不超过10CM，绿篱整形符合造景要求，立面、平面整齐，光滑，无高低不平现象。\n（2）除杂8次以上，人工清除，不能留有杂草，单平米不超3株，杂草高度不超5cm。\n（3）修剪枝条及时清理，保证绿地内无残枝，垃圾外运，运距自行考虑。\n服务期：5个月。",{"$f":"24998+14326","v":39324},"平方米",null,0]
[null,null,null,"草坪养护期5个月","草坪养护\n服务内容：（1）修剪8次以上，采用割冠机和草坪修剪机修剪，修剪整齐，高度一致，高度控制在6-8厘米，确保草坪外观整齐。\n（2）修剪下的草坪及时外运，运距自行考虑。\n(3)除杂8次，人工清除，不能留有杂草，杂草高度不超5cm。\n服务期：5个月。",{"$f":"93124+97444","v":190568},"平方米",null,0]
[null,null,null,"宿根花卉养护期5个月","宿根花卉\n服务内容：（1）除杂8次以上，人工清除，不能留有杂草，杂草单平米不超3株，杂草高度不超5cm。\n（2）杂草及时清理，保证绿地内无残花，垃圾外运，运距自行考虑。\n服务期：5个月。",{"$f":"43687+31348","v":75035},"平方米",null,0]
[null,null,null,"应季花卉养护期5个月","应季花卉养护\n服务内容：（1）除杂8次以上，人工清除，不能留有杂草，杂草单平米不超3株，杂草高度不超5cm。\n（2）杂草及时清理，保证绿地内无残花，垃圾外运，运距自行考虑。\n服务期：5个月。",{"$f":"1768+450","v":2218},"平方米",null,0]
["小计",{"$f":"SUM(B19:B28)","v":0}]
["2025年南关区属公共街路、绿地养护项目"]
["序号","采购金额（元）","名称","种类","特征描述","数量","单位","综合单价（元）","小计"]
["2025年南关\n区属公共街路、\n绿地养护项目\n",{"$f":"I32+I33+I34+I35+I36+I37+I38+I39+I40+I41","v":0},"公共街路养护\n（南四环-金宇大路）","乔木（涂白1次、抹树芽5次）养护期5个月","乔木养护\n服务内容：（1）涂白1次，涂白高度1.2m ,同一路段、区域的涂白高度一致。涂白时保持树木周边无涂白料，干净整洁。\n（2）抹树芽5次（1次/月，仅杨树、柳树、稠李需要抹树芽）人工清除，单次除干净，不要留残枝。\n（3）垃圾外运，运距自行考虑。\n服务期：5个月。",6057,"株",null,{"$f":"F32*H32","v":0}]
[null,null,null,"乔木（涂白1次）养护期5个月","乔木养护\n服务内容：（1）涂白1次，涂白高度1.2m ,同一路段、区域的涂白高度一致。涂白时保持树木周边无涂白料，干净整洁。\n（2）抹树芽5次（1次/月，仅杨树、柳树、稠李需要抹树芽）人工清除，单次除干净，不要留残枝。\n（3）垃圾外运，运距自行考虑。\n服务期：5个月。",{"$f":"3256-1427","v":1829},"株",null,0]
[null,null,null,"灌木养护期5个月","灌木养护\n服务内容：（1）除杂8次以上，人工清除，不能留有杂草，杂草单平米不超3株，杂草高度不超5cm。\n（2）杂草及时清理，保证绿地内无残枝，垃圾外运，运距自行考虑。\n服务期：5个月。",957,"株",null,0]
[null,null,null,"绿篱养护期5个月","绿篱养护\n服务内容：（1）修剪8次以上，保持新生枝条不超过10CM，绿篱整形符合造景要求，立面、平面整齐，光滑，无高低不平现象。\n（2）除杂8次以上，人工清除，不能留有杂草，单平米不超3株，杂草高度不超5cm。\n（3）修剪枝条及时清理，保证绿地内无残枝，垃圾外运，运距自行考虑。\n服务期：5个月。",15665,"平方米",null,0]
[null,null,null,"草坪养护期5个月","草坪养护\n服务内容：（1）修剪8次以上，采用割冠机和草坪修剪机修剪，修剪整齐，高度一致，高度控制在6-8厘米，确保草坪外观整齐。\n（2）修剪下的草坪及时外运，运距自行考虑。\n(3)除杂8次，人工清除，不能留有杂草，杂草高度不超5cm。\n服务期：5个月。",19035,"平方米",null,0]
[null,null,null,"宿根花卉养护期5个月","宿根花卉\n服务内容：（1）除杂8次以上，人工清除，不能留有杂草，杂草单平米不超3株，杂草高度不超5cm。\n（2）杂草及时清理，保证绿地内无残花，垃圾外运，运距自行考虑。\n服务期：5个月。",12069,"平方米",null,0]
[null,null,"公共绿地养护\n（南四环-金宇大路）","绿篱养护期5个月","绿篱养护\n服务内容：（1）修剪8次以上，保持新生枝条不超过10CM，绿篱整形符合造景要求，立面、平面整齐，光滑，无高低不平现象。\n（2）除杂8次以上，人工清除，不能留有杂草，单平米不超3株，杂草高度不超5cm。\n（3）修剪枝条及时清理，保证绿地内无残枝，垃圾外运，运距自行考虑。\n服务期：5个月。",14318,"平方米",null,0]
[null,null,null,"草坪养护期5个月","草坪养护\n服务内容：（1）修剪8次以上，采用割冠机和草坪修剪机修剪，修剪整齐，高度一致，高度控制在6-8厘米，确保草坪外观整齐。\n（2）修剪下的草坪及时外运，运距自行考虑。\n(3)除杂8次，人工清除，不能留有杂草，杂草高度不超5cm。\n服务期：5个月。",212550,"平方米",null,0]
[null,null,null,"宿根花卉养护期5个月","宿根花卉\n服务内容：（1）除杂8次以上，人工清除，不能留有杂草，杂草单平米不超3株，杂草高度不超5cm。\n（2）杂草及时清理，保证绿地内无残花，垃圾外运，运距自行考虑。\n服务期：5个月。",13752,"平方米",null,0]
[null,null,null,"应季花卉养护期5个月","应季花卉养护\n服务内容：（1）除杂8次以上，人工清除，不能留有杂草，杂草单平米不超3株，杂草高度不超5cm。\n（2）杂草及时清理，保证绿地内无残花，垃圾外运，运距自行考虑。\n服务期：5个月。",2000,"平方米",null,0]
["小计",{"$f":"SUM(B32:B41)","v":0}]
["2025年南关区属公共街路、绿地养护项目"]
["序号","采购金额（元）","名称","种类","特征描述","数量","单位","综合单价（元）","小计"]
["2025年南关\n区属公共街路、\n绿地养护项目\n",{"$f":"I45+I46+I47+I48+I49+I50+I51+I52","v":0},"公共街路养护\n（金宇大路以南）","乔木（涂白1次、抹树芽5次）养护期5个月","乔木养护\n服务内容：（1）涂白1次，涂白高度1.2m ,同一路段、区域的涂白高度一致。涂白时保持树木周边无涂白料，干净整洁。\n（2）抹树芽5次（1次/月，仅杨树、柳树、稠李需要抹树芽）人工清除，单次除干净，不要留残枝。\n（3）垃圾外运，运距自行考虑。\n服务期：5个月。",{"$f":"4592-519-31+515","v":4557},"株",null,{"$f":"F45*H45","v":0}]
[null,null,null,"乔木（涂白1次）养护期5个月","乔木养护\n服务内容：（1）涂白1次，涂白高度1.2m ,同一路段、区域的涂白高度一致。涂白时保持树木周边无涂白料，干净整洁。\n（2）抹树芽5次（1次/月，仅杨树、柳树、稠李需要抹树芽）人工清除，单次除干净，不要留残枝。\n（3）垃圾外运，运距自行考虑。\n服务期：5个月。",{"$f":"1073+1696","v":2769},"株",null,0]
[null,null,null,"绿篱养护期5个月","绿篱养护\n服务内容：（1）修剪8次以上，保持新生枝条不超过10CM，绿篱整形符合造景要求，立面、平面整齐，光滑，无高低不平现象。\n（2）除杂8次以上，人工清除，不能留有杂草，单平米不超3株，杂草高度不超5cm。\n（3）修剪枝条及时清理，保证绿地内无残枝，垃圾外运，运距自行考虑。\n服务期：5个月。",14807,"平方米",null,0]
[null,null,null,"草坪养护期5个月","草坪养护\n服务内容：（1）修剪8次以上，采用割冠机和草坪修剪机修剪，修剪整齐，高度一致，高度控制在6-8厘米，确保草坪外观整齐。\n（2）修剪下的草坪及时外运，运距自行考虑。\n(3)除杂8次，人工清除，不能留有杂草，杂草高度不超5cm。\n服务期：5个月。",24107,"平方米",null,0]
[null,null,null,"宿根花卉养护期5个月","宿根花卉\n服务内容：（1）除杂8次以上，人工清除，不能留有杂草，杂草单平米不超3株，杂草高度不超5cm。\n（2）杂草及时清理，保证绿地内无残花，垃圾外运，运距自行考虑。\n服务期：5个月。",46892,"平方米",null,0]
[null,null,"公共绿地养护\n（金宇大路以南）","绿篱养护期5个月","绿篱养护\n服务内容：（1）修剪8次以上，保持新生枝条不超过10CM，绿篱整形符合造景要求，立面、平面整齐，光滑，无高低不平现象。\n（2）除杂8次以上，人工清除，不能留有杂草，单平米不超3株，杂草高度不超5cm。\n（3）修剪枝条及时清理，保证绿地内无残枝，垃圾外运，运距自行考虑。\n服务期：5个月。",12060,"平方米",null,0]
[null,null,null,"草坪养护期5个月","草坪养护\n服务内容：（1）修剪8次以上，采用割冠机和草坪修剪机修剪，修剪整齐，高度一致，高度控制在6-8厘米，确保草坪外观整齐。\n（2）修剪下的草坪及时外运，运距自行考虑。\n(3)除杂8次，人工清除，不能留有杂草，杂草高度不超5cm。\n服务期：5个月。",131989,"平方米",null,0]
[null,null,null,"宿根花卉养护期5个月","宿根花卉\n服务内容：（1）除杂8次以上，人工清除，不能留有杂草，杂草单平米不超3株，杂草高度不超5cm。\n（2）杂草及时清理，保证绿地内无残花，垃圾外运，运距自行考虑。\n服务期：5个月。",30315,"平方米",null,0]
["小计",{"$f":"SUM(B45:B52)","v":0}]